[Event "*** Titled Tuesday Blitz"]
[Site "Chess.com"]
[Date "2020.02.04"]
[Round "6"]
[White "SerGo055"]
[Black "joppie2"]
[Result "0-1"]
[WhiteElo "2548"]
[BlackElo "2891"]
[TimeControl "180+2"]
[EndTime "14:21:02 PST"]
[Termination "joppie2 won by resignation"]

1. d4 {[%clk 0:03:01.8]} 1... Nf6 {[%clk 0:03:00.8]} 2. Nf3 {[%clk 0:03:02.3]}
2... g6 {[%clk 0:03:01.4]} 3. c4 {[%clk 0:02:56]} 3... Bg7 {[%clk 0:02:59.8]} 4.
Nc3 {[%clk 0:02:56.4]} 4... O-O {[%clk 0:02:56.9]} 5. Bg5 {[%clk 0:02:56.3]}
5... d6 {[%clk 0:02:50.8]} 6. Qd2 {[%clk 0:02:51.4]} 6... Bf5 {[%clk 0:02:49.1]}
7. Bh6 {[%clk 0:02:33.6]} 7... e5 {[%clk 0:02:41.4]} 8. Bxg7 {[%clk 0:02:28.1]}
8... Kxg7 {[%clk 0:02:32]} 9. dxe5 {[%clk 0:02:28.8]} 9... dxe5 {[%clk
0:02:33.8]} 10. Qxd8 {[%clk 0:02:29.6]} 10... Rxd8 {[%clk 0:02:35.7]} 11. Nxe5
{[%clk 0:02:30.9]} 11... Na6 {[%clk 0:02:37.4]} 12. f3 {[%clk 0:02:30.2]} 12...
Nb4 {[%clk 0:02:35]} 13. Kf2 {[%clk 0:02:28.5]} 13... Rd2 {[%clk 0:02:34.9]} 14.
a3 {[%clk 0:02:16.9]} 14... Nc2 {[%clk 0:02:31.1]} 15. Rd1 {[%clk 0:02:14.5]}
15... Rxd1 {[%clk 0:02:16.1]} 16. Nxd1 {[%clk 0:02:16.4]} 16... Re8 {[%clk
0:02:17.4]} 17. Nd3 {[%clk 0:02:14.9]} 17... Bxd3 {[%clk 0:02:08.3]} 18. exd3
{[%clk 0:02:15.9]} 18... Re1 {[%clk 0:02:09.8]} 19. Nc3 {[%clk 0:02:13.3]} 19...
Rc1 {[%clk 0:02:09.9]} 20. Ne2 {[%clk 0:01:50.3]} 20... Rb1 {[%clk 0:02:08.2]}
21. b4 {[%clk 0:01:49.3]} 21... Nxa3 {[%clk 0:02:07.6]} 22. b5 {[%clk
0:01:49.3]} 22... Nd7 {[%clk 0:02:08.8]} 23. Ng3 {[%clk 0:01:44.6]} 23... Ne5
{[%clk 0:01:58.1]} 24. Be2 {[%clk 0:01:45.4]} 24... Rb2 {[%clk 0:01:47.8]} 25.
Ke3 {[%clk 0:01:42.6]} 25... Nc2+ {[%clk 0:01:47.3]} 26. Ke4 {[%clk 0:01:41.6]}
26... Nd7 {[%clk 0:01:37.7]} 27. d4 {[%clk 0:01:41.9]} 27... Rb3 {[%clk
0:01:35.1]} 28. Rc1 {[%clk 0:01:01.3]} 28... f5+ {[%clk 0:01:31.6]} 29. Kd5
{[%clk 0:00:48.5]} 29... Nb4+ {[%clk 0:01:06.1]} 30. Ke6 {[%clk 0:00:47.1]}
30... Nf6 {[%clk 0:01:03.5]} 31. Ke7 {[%clk 0:00:43.2]} 31... Re3+ {[%clk
0:01:02.1]} 32. Kd8 {[%clk 0:00:42.7]} 32... f4 {[%clk 0:01:03.6]} 33. Nf1
{[%clk 0:00:35.4]} 33... Rxe2 {[%clk 0:01:04.4]} 34. Kxc7 {[%clk 0:00:36.9]}
34... Re7+ {[%clk 0:01:00.7]} 35. Kb8 {[%clk 0:00:30.2]} 35... a6 {[%clk
0:00:22.2]} 36. b6 {[%clk 0:00:28.5]} 36... Nc6+ {[%clk 0:00:23]} 37. Ka8 {[%clk
0:00:21.8]} 37... Na5 {[%clk 0:00:17.6]} 38. c5 {[%clk 0:00:19.4]} 38... Nd5
{[%clk 0:00:12.8]} 39. Nd2 {[%clk 0:00:09]} 39... Nb4 {[%clk 0:00:11.5]} 40. d5
{[%clk 0:00:08.8]} 40... Nxd5 {[%clk 0:00:06.9]} 41. Ne4 {[%clk 0:00:08.3]}
41... Re8+ {[%clk 0:00:06.3]} 42. Ka7 {[%clk 0:00:09.1]} 42... Nb4 {[%clk
0:00:08.2]} 43. c6 {[%clk 0:00:05.4]} 43... Nbxc6+ {[%clk 0:00:09.5]} 44. Rxc6
{[%clk 0:00:06.8]} 44... Nxc6+ {[%clk 0:00:10.2]} 45. Kxb7 {[%clk 0:00:07.7]}
45... Nb4 {[%clk 0:00:11.9]} 46. Kc7 {[%clk 0:00:05.4]} 46... a5 {[%clk
0:00:11.2]} 47. Nc5 {[%clk 0:00:07]} 47... Nd5+ {[%clk 0:00:09.7]} 48. Kc6
{[%clk 0:00:08.4]} 48... Nxb6 {[%clk 0:00:11.6]} 49. Kxb6 {[%clk 0:00:10.2]}
49... Re2 {[%clk 0:00:13.5]} 50. Kxa5 {[%clk 0:00:10.2]} 50... Rxg2 {[%clk
0:00:14.4]} 51. Ne6+ {[%clk 0:00:11.6]} 51... Kf6 {[%clk 0:00:14.3]} 52. Nxf4
{[%clk 0:00:13.2]} 52... Rxh2 {[%clk 0:00:16.2]} 53. Kb5 {[%clk 0:00:13.3]}
53... Rf2 {[%clk 0:00:16.5]} 54. Nd5+ {[%clk 0:00:14.5]} 54... Ke5 {[%clk
0:00:17.5]} 55. Ne3 {[%clk 0:00:14.2]} 55... Rxf3 {[%clk 0:00:18.2]} 0-1

[Event "*** Titled Tuesday Blitz"]
[Site "Chess.com"]
[Date "2020.02.04"]
[Round "6"]
[White "hanzo_hasashi1"]
[Black "Dhaydon19"]
[Result "0-1"]
[WhiteElo "2885"]
[BlackElo "2686"]
[TimeControl "180+2"]
[EndTime "14:21:09 PST"]
[Termination "Dhaydon19 won by resignation"]

1. c4 {[%clk 0:03:01.9]} 1... c6 {[%clk 0:02:39.2]} 2. Nf3 {[%clk 0:03:01]} 2...
d5 {[%clk 0:02:41.1]} 3. e3 {[%clk 0:03:01.8]} 3... Nf6 {[%clk 0:02:42.2]} 4. d4
{[%clk 0:02:55.4]} 4... Bg4 {[%clk 0:02:42.7]} 5. h3 {[%clk 0:02:55.8]} 5...
Bxf3 {[%clk 0:02:43.8]} 6. Qxf3 {[%clk 0:02:57.7]} 6... e6 {[%clk 0:02:45.7]} 7.
Bd3 {[%clk 0:02:57.7]} 7... Bd6 {[%clk 0:02:46]} 8. O-O {[%clk 0:02:57.6]} 8...
Nbd7 {[%clk 0:02:47.1]} 9. Nc3 {[%clk 0:02:57.3]} 9... Qe7 {[%clk 0:02:44.9]}
10. e4 {[%clk 0:02:49.9]} 10... dxe4 {[%clk 0:02:45.8]} 11. Nxe4 {[%clk
0:02:40.3]} 11... Nxe4 {[%clk 0:02:46.3]} 12. Bxe4 {[%clk 0:02:41.5]} 12... h6
{[%clk 0:02:47.1]} 13. g3 {[%clk 0:02:36.4]} 13... O-O {[%clk 0:02:47.2]} 14.
Bc2 {[%clk 0:02:35.8]} 14... Rae8 {[%clk 0:02:40.6]} 15. Re1 {[%clk 0:02:33.2]}
15... Nf6 {[%clk 0:02:06.3]} 16. a3 {[%clk 0:02:27.6]} 16... e5 {[%clk 0:02:06]}
17. Bf4 {[%clk 0:02:07.2]} 17... e4 {[%clk 0:02:02.8]} 18. Qe3 {[%clk 0:02:05]}
18... Bxf4 {[%clk 0:02:02.5]} 19. Qxf4 {[%clk 0:02:05.6]} 19... Qe6 {[%clk
0:02:04.1]} 20. b3 {[%clk 0:02:01]} 20... Qxh3 {[%clk 0:02:02.9]} 21. Bxe4
{[%clk 0:02:01.2]} 21... Nxe4 {[%clk 0:01:45.5]} 22. Rxe4 {[%clk 0:01:59.1]}
22... Rxe4 {[%clk 0:01:46]} 23. Qxe4 {[%clk 0:01:59.6]} 23... Qd7 {[%clk
0:01:47.9]} 24. Re1 {[%clk 0:01:58.3]} 24... Rd8 {[%clk 0:01:46.8]} 25. Qd3
{[%clk 0:01:58.8]} 25... Qd6 {[%clk 0:01:40.9]} 26. b4 {[%clk 0:01:58.1]} 26...
g6 {[%clk 0:01:40.7]} 27. Re4 {[%clk 0:01:54.9]} 27... Kg7 {[%clk 0:01:38.2]}
28. Qe3 {[%clk 0:01:50.5]} 28... Rd7 {[%clk 0:01:34.9]} 29. Kh2 {[%clk
0:01:40.4]} 29... h5 {[%clk 0:01:35.1]} 30. Kg2 {[%clk 0:01:31.4]} 30... b5
{[%clk 0:01:29.4]} 31. cxb5 {[%clk 0:01:27.7]} 31... cxb5 {[%clk 0:01:31.3]} 32.
Re5 {[%clk 0:01:24.6]} 32... a6 {[%clk 0:01:29]} 33. Re4 {[%clk 0:01:19.8]}
33... Qd5 {[%clk 0:01:27.5]} 34. Kh2 {[%clk 0:01:20.1]} 34... Rd6 {[%clk
0:01:27.1]} 35. Kg1 {[%clk 0:01:16.3]} 35... Rd7 {[%clk 0:01:03.8]} 36. Qf4
{[%clk 0:01:11.7]} 36... Rd6 {[%clk 0:01:00.6]} 37. Re7 {[%clk 0:01:08]} 37...
Rf6 {[%clk 0:01:00.1]} 38. Qe3 {[%clk 0:00:57.2]} 38... Rc6 {[%clk 0:01:00.1]}
39. Re5 {[%clk 0:00:54]} 39... Qd6 {[%clk 0:00:53]} 40. Rc5 {[%clk 0:00:50]}
40... Rb6 {[%clk 0:00:49.4]} 41. d5 {[%clk 0:00:49.7]} 41... Qf6 {[%clk
0:00:50.2]} 42. f4 {[%clk 0:00:45.8]} 42... Rd6 {[%clk 0:00:51.1]} 43. Qe5
{[%clk 0:00:46]} 43... Kh7 {[%clk 0:00:50.2]} 44. Kf2 {[%clk 0:00:45.5]} 44...
Qd8 {[%clk 0:00:49.1]} 45. Kf3 {[%clk 0:00:43]} 45... Qd7 {[%clk 0:00:47.9]} 46.
Kg2 {[%clk 0:00:40.4]} 46... h4 {[%clk 0:00:48]} 47. Qg5 {[%clk 0:00:20.3]}
47... hxg3 {[%clk 0:00:48.5]} 48. Kxg3 {[%clk 0:00:20.5]} 48... Kg7 {[%clk
0:00:47.3]} 49. Qe5+ {[%clk 0:00:21.1]} 49... Kh7 {[%clk 0:00:48.4]} 50. Kh4
{[%clk 0:00:21.2]} 50... Qd8+ {[%clk 0:00:48.2]} 51. Kg4 {[%clk 0:00:21.6]}
51... Qd7+ {[%clk 0:00:48.9]} 52. Kg3 {[%clk 0:00:22.5]} 52... Qd8 {[%clk
0:00:49.9]} 53. Kf3 {[%clk 0:00:22.8]} 53... Qd7 {[%clk 0:00:50.8]} 54. Kg3
{[%clk 0:00:23.5]} 54... Qd8 {[%clk 0:00:52.1]} 55. Rc2 {[%clk 0:00:23.3]} 55...
f6 {[%clk 0:00:47.7]} 56. Qe3 {[%clk 0:00:18.5]} 56... Rxd5 {[%clk 0:00:48.5]}
57. Rh2+ {[%clk 0:00:18.5]} 57... Kg7 {[%clk 0:00:49.6]} 58. Qa7+ {[%clk
0:00:19]} 58... Qd7 {[%clk 0:00:51.1]} 59. Qxd7+ {[%clk 0:00:16.3]} 59... Rxd7
{[%clk 0:00:53]} 60. Ra2 {[%clk 0:00:15.9]} 60... Rd3+ {[%clk 0:00:54.1]} 61.
Kf2 {[%clk 0:00:16.5]} 61... Rb3 {[%clk 0:00:54.6]} 62. Rd2 {[%clk 0:00:13.1]}
62... Rxa3 {[%clk 0:00:54.7]} 63. Rd7+ {[%clk 0:00:14.3]} 63... Kh6 {[%clk
0:00:56.3]} 64. Rf7 {[%clk 0:00:14.9]} 64... f5 {[%clk 0:00:57.5]} 65. Rf6
{[%clk 0:00:15.4]} 65... Kh5 {[%clk 0:00:57.3]} 66. Ke2 {[%clk 0:00:16]} 66...
Kg4 {[%clk 0:00:57.7]} 67. Rxg6+ {[%clk 0:00:16.8]} 67... Kxf4 {[%clk
0:00:59.1]} 0-1

[Event "*** Titled Tuesday Blitz"]
[Site "Chess.com"]
[Date "2020.02.04"]
[Round "6"]
[White "Gabrielian_Artur"]
[Black "amiralfio"]
[Result "1-0"]
[WhiteElo "2766"]
[BlackElo "2524"]
[TimeControl "180+2"]
[EndTime "14:21:32 PST"]
[Termination "Gabrielian_Artur won by resignation"]

1. e4 {[%clk 0:03:01.9]} 1... e5 {[%clk 0:03:00.7]} 2. Nf3 {[%clk 0:03:00.6]}
2... Nc6 {[%clk 0:03:01.8]} 3. Bb5 {[%clk 0:03:01.4]} 3... a6 {[%clk 0:03:03]}
4. Bxc6 {[%clk 0:03:02.2]} 4... dxc6 {[%clk 0:03:04.9]} 5. Nc3 {[%clk
0:03:02.3]} 5... f6 {[%clk 0:03:04.7]} 6. d3 {[%clk 0:03:03.4]} 6... Bg4 {[%clk
0:03:00.4]} 7. h3 {[%clk 0:03:03.9]} 7... Bh5 {[%clk 0:03:00.6]} 8. g4 {[%clk
0:03:02.4]} 8... Bf7 {[%clk 0:03:01.9]} 9. Be3 {[%clk 0:03:01.7]} 9... Ne7
{[%clk 0:02:56.5]} 10. Qe2 {[%clk 0:02:59.8]} 10... Ng6 {[%clk 0:02:51.5]} 11.
O-O-O {[%clk 0:02:59.3]} 11... c5 {[%clk 0:02:52.4]} 12. h4 {[%clk 0:02:59.2]}
12... Qd7 {[%clk 0:02:42.5]} 13. h5 {[%clk 0:03:00.4]} 13... Nf4 {[%clk
0:02:43.2]} 14. Bxf4 {[%clk 0:03:01.1]} 14... exf4 {[%clk 0:02:45.1]} 15. h6
{[%clk 0:02:46]} 15... gxh6 {[%clk 0:02:33.3]} 16. Nh4 {[%clk 0:02:46.8]} 16...
O-O-O {[%clk 0:02:26]} 17. Nf5 {[%clk 0:02:47.9]} 17... Be6 {[%clk 0:02:27.2]}
18. Qf3 {[%clk 0:02:44.5]} 18... Bd6 {[%clk 0:02:25.5]} 19. Rxh6 {[%clk
0:02:43.5]} 19... Be5 {[%clk 0:02:22.2]} 20. Nd5 {[%clk 0:02:42.4]} 20... Kb8
{[%clk 0:02:16.1]} 21. c3 {[%clk 0:02:11.6]} 21... Qa4 {[%clk 0:02:03.7]} 22.
Kb1 {[%clk 0:02:00.6]} 22... c6 {[%clk 0:01:59.2]} 23. b3 {[%clk 0:01:58.1]}
23... Qa3 {[%clk 0:01:59.3]} 24. Ng7 {[%clk 0:00:58.1]} 24... Bxd5 {[%clk
0:01:10.6]} 25. exd5 {[%clk 0:00:58.6]} 25... Bxc3 {[%clk 0:01:11.2]} 26. Qxf4+
{[%clk 0:00:59.6]} 26... Ka7 {[%clk 0:01:08.7]} 27. Qc1 {[%clk 0:01:00.4]} 27...
Qxc1+ {[%clk 0:01:08.1]} 28. Kxc1 {[%clk 0:01:01.3]} 28... cxd5 {[%clk
0:01:08.2]} 29. Kc2 {[%clk 0:00:55.9]} 29... Be5 {[%clk 0:01:06]} 30. Ne6 {[%clk
0:00:56.1]} 30... Rdg8 {[%clk 0:01:03.5]} 31. f3 {[%clk 0:00:54.6]} 31... Rg6
{[%clk 0:00:55.6]} 32. Rdh1 {[%clk 0:00:54.2]} 32... Rxh6 {[%clk 0:00:39.6]} 33.
Rxh6 {[%clk 0:00:55]} 33... Kb6 {[%clk 0:00:40.9]} 34. f4 {[%clk 0:00:53.2]}
34... Ba1 {[%clk 0:00:39.9]} 35. Rh1 {[%clk 0:00:44.9]} 35... Re8 {[%clk
0:00:34.7]} 36. f5 {[%clk 0:00:44.3]} 36... Be5 {[%clk 0:00:33.9]} 37. Rxh7
{[%clk 0:00:44.6]} 37... Rg8 {[%clk 0:00:34.9]} 38. g5 {[%clk 0:00:28.3]} 38...
fxg5 {[%clk 0:00:28.7]} 39. Rh6 {[%clk 0:00:29.7]} 39... g4 {[%clk 0:00:18.4]}
40. f6 {[%clk 0:00:25.5]} 40... Bxf6 {[%clk 0:00:05.2]} 41. Rxf6 {[%clk
0:00:26.4]} 41... g3 {[%clk 0:00:07.1]} 42. Nf4+ {[%clk 0:00:13.8]} 42... Kb5
{[%clk 0:00:07.5]} 43. Ng2 {[%clk 0:00:14.4]} 43... Rh8 {[%clk 0:00:03.9]} 44.
Rg6 {[%clk 0:00:14.7]} 44... Re8 {[%clk 0:00:04.1]} 45. Kd2 {[%clk 0:00:14.5]}
45... Rf8 {[%clk 0:00:05.3]} 46. Rxg3 {[%clk 0:00:14.6]} 46... Rf2+ {[%clk
0:00:05.6]} 47. Ke3 {[%clk 0:00:16]} 47... Rxa2 {[%clk 0:00:05.1]} 48. Nf4
{[%clk 0:00:15.7]} 48... d4+ {[%clk 0:00:05.6]} 49. Ke4 {[%clk 0:00:16.8]} 49...
Rb2 {[%clk 0:00:03.2]} 50. Rg7 {[%clk 0:00:17.3]} 50... b6 {[%clk 0:00:03.9]}
51. Nd5 {[%clk 0:00:16.7]} 51... Rxb3 {[%clk 0:00:04.9]} 52. Nc7+ {[%clk
0:00:17.8]} 52... Ka5 {[%clk 0:00:04.4]} 53. Rg8 {[%clk 0:00:18.5]} 53... b5
{[%clk 0:00:05]} 54. Rg6 {[%clk 0:00:17.7]} 54... Kb4 {[%clk 0:00:05]} 55. Nxa6+
{[%clk 0:00:18]} 55... Kc3 {[%clk 0:00:05.5]} 56. Nxc5 {[%clk 0:00:19]} 56...
Rb1 {[%clk 0:00:07]} 57. Rc6 {[%clk 0:00:18.7]} 57... Re1+ {[%clk 0:00:08.4]}
58. Kd5 {[%clk 0:00:19.9]} 58... b4 {[%clk 0:00:06.7]} 59. Rb6 {[%clk
0:00:17.4]} 59... Rh1 {[%clk 0:00:05.8]} 60. Rc6 {[%clk 0:00:13.9]} 60... Rh5+
{[%clk 0:00:05.8]} 61. Ke4 {[%clk 0:00:15.3]} 61... b3 {[%clk 0:00:07.2]} 62.
Na4+ {[%clk 0:00:16.2]} 62... Kb4 {[%clk 0:00:08.2]} 63. Nb6 {[%clk 0:00:17.1]}
63... b2 {[%clk 0:00:09]} 64. Nc4 {[%clk 0:00:17.5]} 64... b1=Q {[%clk
0:00:06.5]} 65. Rb6+ {[%clk 0:00:18.4]} 65... Rb5 {[%clk 0:00:08]} 66. Rxb5+
{[%clk 0:00:19.7]} 66... Kxb5 {[%clk 0:00:09.5]} 67. Na3+ {[%clk 0:00:21.3]}
67... Kb4 {[%clk 0:00:09.6]} 68. Nxb1 {[%clk 0:00:22.7]} 68... Kb3 {[%clk
0:00:11.2]} 69. Kxd4 {[%clk 0:00:23.5]} 69... Kc2 {[%clk 0:00:13.1]} 70. Na3+
{[%clk 0:00:24.4]} 1-0

[Event "*** Titled Tuesday Blitz"]
[Site "Chess.com"]
[Date "2020.02.04"]
[Round "6"]
[White "IakovUlivar"]
[Black "vellottiwizard"]
[Result "0-1"]
[WhiteElo "2448"]
[BlackElo "2685"]
[TimeControl "180+2"]
[EndTime "14:21:35 PST"]
[Termination "vellottiwizard won by resignation"]

1. d4 {[%clk 0:03:01.9]} 1... Nf6 {[%clk 0:03:00.3]} 2. c4 {[%clk 0:03:02.4]}
2... e6 {[%clk 0:02:59.9]} 3. Nc3 {[%clk 0:03:01.9]} 3... Bb4 {[%clk 0:03:00.8]}
4. e3 {[%clk 0:03:02.9]} 4... O-O {[%clk 0:03:01.7]} 5. Bd2 {[%clk 0:03:03.9]}
5... d5 {[%clk 0:02:59.7]} 6. Nf3 {[%clk 0:03:00]} 6... c5 {[%clk 0:02:46.8]} 7.
a3 {[%clk 0:02:58.4]} 7... Bxc3 {[%clk 0:02:47.1]} 8. Bxc3 {[%clk 0:02:59.6]}
8... Ne4 {[%clk 0:02:48.3]} 9. Rc1 {[%clk 0:02:57.2]} 9... Nxc3 {[%clk
0:02:34.5]} 10. Rxc3 {[%clk 0:02:56.5]} 10... cxd4 {[%clk 0:02:34.6]} 11. Qxd4
{[%clk 0:02:50.4]} 11... Nc6 {[%clk 0:02:34.8]} 12. Qd2 {[%clk 0:02:51.2]} 12...
Qf6 {[%clk 0:02:22.1]} 13. cxd5 {[%clk 0:02:42.8]} 13... Rd8 {[%clk 0:02:19.3]}
14. Rd3 {[%clk 0:02:29.7]} 14... exd5 {[%clk 0:02:16.5]} 15. Nd4 {[%clk
0:02:19.7]} 15... Qg6 {[%clk 0:01:55.4]} 16. f3 {[%clk 0:00:54.3]} 16... Be6
{[%clk 0:01:43.6]} 17. Kf2 {[%clk 0:00:52.3]} 17... Rac8 {[%clk 0:01:43]} 18.
Be2 {[%clk 0:00:47.7]} 18... Nxd4 {[%clk 0:01:35.5]} 19. exd4 {[%clk 0:00:40.6]}
19... Bf5 {[%clk 0:01:36.6]} 20. Rc3 {[%clk 0:00:37.6]} 20... Rxc3 {[%clk
0:01:37]} 21. bxc3 {[%clk 0:00:35]} 21... Qd6 {[%clk 0:01:37.5]} 22. Qb2 {[%clk
0:00:28.1]} 22... b6 {[%clk 0:01:37.6]} 23. g3 {[%clk 0:00:24.7]} 23... Re8
{[%clk 0:01:35.6]} 24. Qc1 {[%clk 0:00:14.6]} 24... Rc8 {[%clk 0:00:57.2]} 25.
Ba6 {[%clk 0:00:14.5]} 25... Rc7 {[%clk 0:00:51.5]} 26. Re1 {[%clk 0:00:14.4]}
26... h6 {[%clk 0:00:48.2]} 27. Qb2 {[%clk 0:00:08.2]} 27... Kh7 {[%clk
0:00:19.8]} 28. Re5 {[%clk 0:00:09.1]} 28... Qf6 {[%clk 0:00:17.1]} 29. Qd2
{[%clk 0:00:06.3]} 29... Be6 {[%clk 0:00:14.5]} 30. Bd3+ {[%clk 0:00:06.5]}
30... Kg8 {[%clk 0:00:15.1]} 31. f4 {[%clk 0:00:03.7]} 31... Kf8 {[%clk
0:00:13.8]} 32. Bf1 {[%clk 0:00:04.6]} 32... g6 {[%clk 0:00:08]} 33. Bg2 {[%clk
0:00:05.3]} 33... Rd7 {[%clk 0:00:05.3]} 34. Kg1 {[%clk 0:00:06]} 34... Kg7
{[%clk 0:00:06.3]} 35. h4 {[%clk 0:00:06.2]} 35... h5 {[%clk 0:00:07.2]} 36. Kh2
{[%clk 0:00:07.1]} 36... Qd8 {[%clk 0:00:08.2]} 37. Qb2 {[%clk 0:00:07.9]} 37...
Qc7 {[%clk 0:00:08.8]} 38. Qb4 {[%clk 0:00:08.5]} 38... a5 {[%clk 0:00:09]} 39.
Qb2 {[%clk 0:00:08.5]} 39... Rd6 {[%clk 0:00:08.9]} 40. Bf1 {[%clk 0:00:08.7]}
40... Rc6 {[%clk 0:00:09.2]} 41. Re3 {[%clk 0:00:09.2]} 41... Bf5 {[%clk
0:00:10.3]} 42. Bb5 {[%clk 0:00:09.5]} 42... Re6 {[%clk 0:00:09.5]} 43. Qd2
{[%clk 0:00:10.2]} 43... Qe7 {[%clk 0:00:09.7]} 44. Rxe6 {[%clk 0:00:09.9]}
44... Qxe6 {[%clk 0:00:08.8]} 45. Qe2 {[%clk 0:00:11.1]} 45... Be4 {[%clk
0:00:10]} 46. Bd3 {[%clk 0:00:10]} 46... f5 {[%clk 0:00:08.6]} 47. Bb5 {[%clk
0:00:07.2]} 47... Qd6 {[%clk 0:00:09.6]} 48. a4 {[%clk 0:00:08]} 48... Qa3
{[%clk 0:00:09.7]} 49. Qd2 {[%clk 0:00:08.9]} 49... Qb3 {[%clk 0:00:10.2]} 50.
Bd3 {[%clk 0:00:02.8]} 50... Qxa4 {[%clk 0:00:09.6]} 51. Bxe4 {[%clk 0:00:03.8]}
51... dxe4 {[%clk 0:00:07.7]} 52. d5 {[%clk 0:00:04.7]} 52... Kf7 {[%clk
0:00:09]} 53. d6 {[%clk 0:00:05.4]} 53... Ke6 {[%clk 0:00:09.8]} 54. Qb2 {[%clk
0:00:03.7]} 54... Qc6 {[%clk 0:00:09.7]} 55. c4 {[%clk 0:00:04.3]} 55... Kxd6
{[%clk 0:00:08.9]} 56. Qe5+ {[%clk 0:00:05.2]} 56... Kd7 {[%clk 0:00:10.2]} 57.
Qg7+ {[%clk 0:00:07.1]} 57... Kc8 {[%clk 0:00:11.5]} 58. Qg8+ {[%clk 0:00:07.5]}
58... Kb7 {[%clk 0:00:12.6]} 59. Qf7+ {[%clk 0:00:08.4]} 59... Ka6 {[%clk
0:00:13.8]} 60. Qg8 {[%clk 0:00:09.4]} 60... a4 {[%clk 0:00:14.6]} 61. Qf8
{[%clk 0:00:08.7]} 61... Ka5 {[%clk 0:00:13.7]} 62. Qa3 {[%clk 0:00:09.3]} 62...
Qxc4 {[%clk 0:00:14.3]} 63. Qf8 {[%clk 0:00:09.7]} 63... Qc5 {[%clk 0:00:15]}
64. Qa8+ {[%clk 0:00:09.5]} 64... Kb4 {[%clk 0:00:16.2]} 65. Qe8 {[%clk
0:00:10.3]} 65... a3 {[%clk 0:00:17.1]} 66. Qxg6 {[%clk 0:00:08.7]} 66... a2
{[%clk 0:00:17.1]} 67. Qf6 {[%clk 0:00:09.5]} 67... Kb3 {[%clk 0:00:13.4]} 68.
Qe6+ {[%clk 0:00:05.8]} 68... Kb2 {[%clk 0:00:14.4]} 69. Qf6+ {[%clk 0:00:06.6]}
69... Kb1 {[%clk 0:00:15.8]} 0-1

[Event "*** Titled Tuesday Blitz"]
[Site "Chess.com"]
[Date "2020.02.04"]
[Round "6"]
[White "AdrianaNikolova"]
[Black "Mikhail_Golubev"]
[Result "1-0"]
[WhiteElo "2406"]
[BlackElo "2528"]
[TimeControl "180+2"]
[EndTime "14:21:44 PST"]
[Termination "AdrianaNikolova won on time"]

1. d4 {[%clk 0:03:01.9]} 1... Nf6 {[%clk 0:03:00.2]} 2. Bf4 {[%clk 0:03:02.1]}
2... d6 {[%clk 0:03:00.5]} 3. e3 {[%clk 0:03:02.4]} 3... Nbd7 {[%clk 0:03:01.2]}
4. Nf3 {[%clk 0:03:02.6]} 4... Nh5 {[%clk 0:02:55.3]} 5. Bg5 {[%clk 0:03:03.1]}
5... h6 {[%clk 0:02:55.2]} 6. Bh4 {[%clk 0:03:04.5]} 6... g5 {[%clk 0:02:53.6]}
7. Bg3 {[%clk 0:03:02.1]} 7... Bg7 {[%clk 0:02:54.2]} 8. c4 {[%clk 0:02:51.9]}
8... e5 {[%clk 0:02:44.5]} 9. Nc3 {[%clk 0:02:51.4]} 9... Nxg3 {[%clk
0:02:16.2]} 10. hxg3 {[%clk 0:02:51.8]} 10... g4 {[%clk 0:02:17.4]} 11. Nh4
{[%clk 0:02:48.5]} 11... exd4 {[%clk 0:02:18.4]} 12. exd4 {[%clk 0:02:49.4]}
12... Nf6 {[%clk 0:01:50]} 13. Qd3 {[%clk 0:02:41.8]} 13... h5 {[%clk
0:01:39.7]} 14. O-O-O {[%clk 0:02:34.5]} 14... Kf8 {[%clk 0:01:32.7]} 15. Nf5
{[%clk 0:02:18.5]} 15... Bxf5 {[%clk 0:01:06.4]} 16. Qxf5 {[%clk 0:02:20.4]}
16... c6 {[%clk 0:01:04.2]} 17. Bd3 {[%clk 0:02:05.9]} 17... Qd7 {[%clk
0:01:02.6]} 18. Qxd7 {[%clk 0:02:00.4]} 18... Nxd7 {[%clk 0:01:03]} 19. Bf5
{[%clk 0:02:02.3]} 19... Nb6 {[%clk 0:00:53.8]} 20. b3 {[%clk 0:01:45.8]} 20...
c5 {[%clk 0:00:47.4]} 21. Nb5 {[%clk 0:01:46.7]} 21... cxd4 {[%clk 0:00:37.8]}
22. Nxd6 {[%clk 0:01:36.5]} 22... a5 {[%clk 0:00:38.7]} 23. a4 {[%clk 0:01:36]}
23... Rd8 {[%clk 0:00:34]} 24. Nxb7 {[%clk 0:01:35.6]} 24... Rb8 {[%clk
0:00:34.9]} 25. Nxa5 {[%clk 0:01:35.4]} 25... Rh6 {[%clk 0:00:28.6]} 26. Be4
{[%clk 0:01:10]} 26... Re6 {[%clk 0:00:21.9]} 27. f3 {[%clk 0:01:11.2]} 27...
Nd7 {[%clk 0:00:13.3]} 28. Kc2 {[%clk 0:01:02.4]} 28... Nc5 {[%clk 0:00:13.1]}
29. Rhe1 {[%clk 0:00:36.1]} 29... Rd8 {[%clk 0:00:09.3]} 30. Bd5 {[%clk
0:00:34.9]} 30... d3+ {[%clk 0:00:09.1]} 31. Kd2 {[%clk 0:00:31.6]} 31... Ra6
{[%clk 0:00:09.1]} 32. Nc6 {[%clk 0:00:31.1]} 32... Rxc6 {[%clk 0:00:09.8]} 33.
Bxc6 {[%clk 0:00:31.8]} 33... Nxb3+ {[%clk 0:00:10.8]} 34. Ke3 {[%clk
0:00:32.6]} 34... d2 {[%clk 0:00:09.7]} 35. Rh1 {[%clk 0:00:28.5]} 35... Bh6+
{[%clk 0:00:07.6]} 36. f4 {[%clk 0:00:27.9]} 36... Rd6 {[%clk 0:00:08.1]} 37.
Bd5 {[%clk 0:00:28.4]} 37... Bg7 {[%clk 0:00:07]} 38. Rxh5 {[%clk 0:00:27.7]}
38... Bd4+ {[%clk 0:00:07.7]} 39. Kd3 {[%clk 0:00:28.9]} 39... Bf2 {[%clk
0:00:07.5]} 40. Kc3 {[%clk 0:00:28.3]} 40... Nc5 {[%clk 0:00:07.1]} 41. Rxd2
{[%clk 0:00:27.2]} 41... Be1 {[%clk 0:00:08]} 42. Kc2 {[%clk 0:00:26.1]} 42...
Bxd2 {[%clk 0:00:08.7]} 43. Kxd2 {[%clk 0:00:28]} 43... Ne4+ {[%clk 0:00:09.8]}
44. Kc2 {[%clk 0:00:24.4]} 44... Nxg3 {[%clk 0:00:10.1]} 45. Rh8+ {[%clk
0:00:24.3]} 45... Ke7 {[%clk 0:00:07.5]} 46. Rh7 {[%clk 0:00:22.5]} 46... Rf6
{[%clk 0:00:06.7]} 47. a5 {[%clk 0:00:22.5]} 47... Ne2 {[%clk 0:00:06.4]} 48. a6
{[%clk 0:00:16.4]} 48... Rxa6 {[%clk 0:00:06.1]} 49. Rxf7+ {[%clk 0:00:17.2]}
49... Ke8 {[%clk 0:00:07]} 50. Kd3 {[%clk 0:00:18.7]} 50... Ng3 {[%clk
0:00:05.5]} 51. Rg7 {[%clk 0:00:10]} 51... Ra3+ {[%clk 0:00:05.6]} 52. Kc2
{[%clk 0:00:09.6]} 52... Nf1 {[%clk 0:00:05.1]} 53. Kb2 {[%clk 0:00:07.3]} 53...
Rg3 {[%clk 0:00:05.8]} 54. c5 {[%clk 0:00:07.8]} 54... Ne3 {[%clk 0:00:06.6]}
55. Be4 {[%clk 0:00:07]} 55... Nc4+ {[%clk 0:00:05.8]} 56. Kc1 {[%clk
0:00:07.2]} 56... Rc3+ {[%clk 0:00:05.5]} 57. Kd1 {[%clk 0:00:06.7]} 57... g3
{[%clk 0:00:03.5]} 58. c6 {[%clk 0:00:05.4]} 58... Nd6 {[%clk 0:00:03.6]} 59.
Bf3 {[%clk 0:00:05.7]} 59... Nf5 {[%clk 0:00:03.1]} 60. Rg5 {[%clk 0:00:04.9]}
60... Nd4 {[%clk 0:00:03.3]} 61. Rxg3 {[%clk 0:00:02.3]} 61... Kf8 {[%clk
0:00:03.5]} 62. Rg5 {[%clk 0:00:02.9]} 1-0